bitfinex/quotes_BTCUSD_20220306
["timestamp","ask_amount","ask_price","bid_price","bid_amount"]
[1646560838985,0.3594502,38754.0,38753.0,6.153e-05]
[1646560839180,1.15,38753.0,38751.0,0.00012306]
[1646560839378,1.0954987,38752.0,38751.0,0.00012306]
[1646560839578,1.2454987,38752.0,38751.0,0.00012306]
[1646560839778,1.2454987,38752.0,38747.0,6.153e-05]
[1646560839779,0.02576,38749.0,38747.0,6.153e-05]
[1646560839982,0.800663,38748.0,38747.0,6.153e-05]
[1646560840178,0.800663,38748.0,38745.0,0.00018459]
[1646560840179,0.02576,38746.0,38745.0,0.00018459]
[1646560840378,1.2858802,38746.0,38745.0,0.00018459]
[1646560840582,1.02813,38746.0,38745.0,0.00018459]
[1646560840849,0.02576,38744.0,38743.0,6.153e-05]
[1646560841049,0.4964102,38744.0,38743.0,6.153e-05]
[1646560841248,0.02576,38743.0,38740.0,3.06e-06]
[1646560841452,0.01521209,38738.0,38732.0,0.30478209]
[1646560841650,0.02576,38731.0,38721.0,0.20826265]
[1646560841848,0.02576,38729.0,38721.0,0.001]
[1646560842049,0.07746,38728.0,38721.0,0.001]
[1646560842249,0.38118304,38727.0,38721.0,0.001]
[1646560842449,0.02576,38725.0,38721.0,0.001]
[1646560842650,0.07746,38724.0,38721.0,0.001]
[1646560842850,0.07746,38724.0,38720.0,0.098]
[1646560843052,0.07746,38724.0,38722.0,0.00015932]
[1646560843053,0.30542304,38723.0,38722.0,0.00015932]
[1646560843250,0.30542304,38723.0,38722.0,0.00022085]
[1646560843251,0.48288304,38723.0,38722.0,0.00022085]
[1646560843452,0.48288304,38723.0,38722.0,0.00015932]
[1646560843651,0.17746,38723.0,38722.0,0.00015932]
[1646560843853,0.17746,38723.0,38720.0,0.098]
[1646560843854,0.242085,38723.0,38720.0,0.098]
[1646560844050,0.1,38722.0,38720.0,0.098]
[1646560844254,0.0517,38721.0,38720.0,0.098]
[1646560844453,0.05163847,38721.0,38720.0,0.098]
[1646560844883,0.38282151,38721.0,38720.0,0.098]
[1646560845078,0.07739847,38721.0,38720.0,0.098]
[1646560845676,0.35706151,38721.0,38720.0,0.098]
[1646560845877,0.48282151,38721.0,38720.0,0.082]
[1646560846078,0.74662541,38721.0,38720.0,0.069]
[1646560846277,1.1,38720.0,38713.0,0.002]
[1646560846478,0.6191923,38719.0,38714.0,0.000369]
[1646560846688,0.02576,38716.0,38704.0,0.002]
[1646560846882,0.02576,38714.0,38704.0,0.002]
[1646560847080,0.02576,38712.0,38708.0,0.002]
[1646560847278,0.33022832,38712.0,38708.0,0.002]
[1646560847479,0.0517,38711.0,38708.0,0.002]
[1646560847680,0.0517,38711.0,38703.0,0.002]
[1646560847681,0.02576,38706.0,38703.0,0.002]
[1646560847879,0.17576,38705.0,38703.0,0.001]
[1646560848081,0.17576,38705.0,38684.0,0.001]
[1646560848082,0.17916,38703.0,38679.0,1.91278904]
[1646560848331,0.17916,38703.0,38669.0,0.38691469]
[1646560848332,0.02576,38701.0,38669.0,0.38691469]
[1646560848535,0.40616832,38702.0,38668.0,0.00339962]
[1646560848536,0.09043507,38699.0,38688.0,0.17326187]
[1646560848733,0.27206755,38698.0,38688.0,0.17326187]
[1646560848932,0.27206755,38698.0,38686.0,0.06354461]
[1646560849130,0.27206755,38698.0,38680.0,0.001]
[1646560849331,0.30446832,38697.0,38680.0,0.001]
[1646560849534,0.21811791,38696.0,38680.0,0.001]
[1646560849730,0.30446832,38695.0,38689.0,0.18330517]
[1646560849930,0.0517,38694.0,38689.0,0.18330517]
[1646560851434,0.41866832,38694.0,38680.0,0.001]
[1646560851632,0.02576,38692.0,38680.0,0.001]
[1646560852084,0.0517,38691.0,38680.0,0.001]
[1646560852281,0.08525,38691.0,38683.0,0.17248751]
[1646560852483,0.0517,38690.0,38683.0,0.17248751]
[1646560852781,0.0517,38690.0,38684.0,0.00014431]
[1646560853379,0.1017,38690.0,38684.0,0.00014431]
[1646560853581,0.36915531,38689.0,38680.0,0.001]
[1646560853785,0.1517,38688.0,38680.0,0.001]
[1646560853983,0.30446832,38687.0,38680.0,0.001]
[1646560854181,0.064698,38685.0,38680.0,0.001]
[1646560854381,0.0517,38684.0,38680.0,0.001]
[1646560854585,0.47086732,38684.0,38680.0,0.001]
[1646560854784,0.11291,38683.0,38680.0,0.001]
[1646560854983,0.0517,38682.0,38680.0,0.001]
[1646560855183,0.01291,38681.0,38680.0,0.001]
[1646560855389,0.05,38683.0,38681.0,0.03873]
[1646560855684,0.6457,38684.0,38681.0,0.24080752]
[1646560855685,0.0517,38682.0,38681.0,0.24080752]
[1646560856134,0.0517,38682.0,38681.0,0.54527584]
[1646560856536,0.21470513,38683.0,38681.0,0.72439729]
[1646560856734,0.21470513,38683.0,38682.0,0.30446832]
[1646560856934,0.21470513,38683.0,38681.0,0.41992897]
[1646560857137,0.21470513,38683.0,38682.0,0.05369905]
[1646560859340,0.47470513,38683.0,38682.0,0.35816737]
[1646560859584,0.52470513,38683.0,38681.0,0.03873]
[1646560859788,0.52470513,38683.0,38681.0,0.03886674]
[1646560859789,0.66473513,38683.0,38681.0,0.03886674]
[1646560860782,0.66473513,38683.0,38681.0,0.03873]
[1646560860983,0.064698,38682.0,38681.0,0.03873]
[1646560861185,0.216398,38682.0,38681.0,0.03873]
[1646560861588,1.13873,38681.0,38674.0,0.00259853]
[1646560861788,1.15,38679.0,38666.0,0.005]
[1646560861985,0.31737832,38678.0,38666.0,0.005]
[1646560862185,0.0517,38677.0,38666.0,0.005]
[1646560862389,1.15,38675.0,38666.0,0.005]
[1646560862587,0.0517,38674.0,38666.0,0.005]
[1646560862789,0.05128056,38674.0,38667.0,0.20388727]
[1646560862986,0.05128056,38674.0,38666.0,0.005]
[1646560863188,0.03,38670.0,38666.0,0.005]
[1646560863441,0.116419,38669.0,38648.0,0.001]
[1646560863738,0.02576,38668.0,38652.0,0.1834956]
[1646560864231,0.02576,38666.0,38652.0,0.1834956]
[1646560864431,0.02576,38666.0,38653.0,0.30230101]
[1646560864635,0.02576,38666.0,38645.0,0.000373]
[1646560864636,0.16534162,38664.0,38645.0,0.000373]
[1646560864837,0.16534162,38664.0,38644.0,8.56866146]
[1646560864838,0.02576,38647.0,38644.0,8.56866146]
[1646560865041,0.02576,38647.0,38640.0,2.003]
[1646560865042,0.2155,38644.0,38641.0,0.00517582]
[1646560865239,0.2155,38644.0,38634.0,0.181188]
[1646560865240,0.2,38637.0,38634.0,0.181188]
[1646560865435,0.2,38637.0,38634.0,0.121188]
[1646560865436,0.10775005,38635.0,38634.0,0.121188]
[1646560865635,0.12985398,38635.0,38634.0,0.31314172]
[1646560865832,0.12985398,38635.0,38634.0,0.17443972]
[1646560865833,0.8374,38635.0,38634.0,0.17443972]
[1646560866035,0.44725158,38641.0,38634.0,0.17443972]
[1646560866036,0.27358903,38650.0,38637.0,1.15]
[1646560866233,0.5,38647.0,38637.0,0.30446832]
[1646560866434,0.5,38647.0,38632.0,0.0008]
[1646560866435,0.5,38647.0,38639.0,0.35446509]
[1646560866633,0.01463027,38645.0,38632.0,0.0008]
[1646560866835,0.19427691,38650.0,38643.0,0.15]
[1646560867109,0.129515,38650.0,38643.0,0.15]
[1646560867305,0.129515,38650.0,38649.0,0.17804723]
[1646560867505,0.005762,38652.0,38649.0,0.29242843]
[1646560867713,0.05577821,38651.0,38649.0,0.29242843]
[1646560868308,0.064734,38661.0,38650.0,1.15]
[1646560868509,0.005651,38669.0,38652.0,0.15]
[1646560868707,0.01060407,38673.0,38653.0,0.30446832]
[1646560868906,0.005577,38669.0,38653.0,0.30446832]
[1646560869105,0.53,38670.0,38653.0,0.30446832]
[1646560869305,0.001,38673.0,38653.0,0.27446832]
[1646560869506,0.005467,38672.0,38661.0,0.15749791]
[1646560869706,0.005467,38672.0,38650.0,1.3]
[1646560870405,0.064722,38671.0,38650.0,1.3]
[1646560870606,0.00543,38673.0,38663.0,0.16440729]
[1646560871043,0.07950707,38675.0,38663.0,0.16440729]
[1646560871244,0.064721,38672.0,38663.0,0.14440729]
[1646560871843,0.064721,38672.0,38651.0,0.29711257]
[1646560871844,0.30605882,38671.0,38651.0,0.29711257]
[1646560872044,0.30605882,38671.0,38651.0,0.29868031]
[1646560872045,0.35605882,38671.0,38651.0,0.29868031]
[1646560872245,0.35605882,38671.0,38649.0,0.2988473]
[1646560872446,0.15,38657.0,38638.0,0.1]
[1646560872645,0.30605882,38656.0,38633.0,0.15]
[1646560872849,0.10259007,38656.0,38645.0,0.19812215]
[1646560873946,0.05499007,38656.0,38645.0,0.19812215]
[1646560874352,0.35605882,38658.0,38645.0,0.19812215]
[1646560874610,0.35605882,38658.0,38647.0,0.20295477]
[1646560874811,0.35605882,38658.0,38641.0,0.00070659]
[1646560874812,0.064743,38657.0,38641.0,0.00070659]
[1646560875009,0.30605882,38656.0,38641.0,0.00070659]
[1646560875209,0.30605882,38656.0,38637.0,0.6362]
[1646560875210,0.005725,38655.0,38637.0,0.6362]
[1646560875414,0.031485,38655.0,38636.0,0.1493]
[1646560875613,0.031485,38655.0,38641.0,0.00070659]
[1646560875614,0.44416282,38654.0,38641.0,0.00070659]
[1646560875810,0.188104,38654.0,38646.0,0.15249966]
[1646560876214,0.0976,38654.0,38641.0,0.00070659]
[1646560876412,0.0976,38654.0,38648.0,0.21636582]
[1646560876611,0.0976,38654.0,38636.0,0.2993]
[1646560876811,0.0976,38654.0,38641.0,0.00070659]
[1646560877210,0.0976,38654.0,38647.0,0.1958763]
[1646560877414,0.05878696,38644.0,38641.0,0.00070659]
[1646560877614,0.05878696,38644.0,38634.0,6.003e-05]
[1646560877615,0.02576,38643.0,38634.0,6.003e-05]
[1646560877813,0.05878696,38644.0,38634.0,6.003e-05]
[1646560877814,0.10878696,38644.0,38634.0,6.003e-05]
[1646560878018,0.10878696,38644.0,38641.0,0.00234717]
[1646560878019,0.0476,38643.0,38641.0,0.00234717]
[1646560878212,0.0476,38643.0,38634.0,6.003e-05]
[1646560878439,0.01393538,38641.0,38634.0,6.003e-05]
[1646560878636,0.0476,38640.0,38634.0,6.003e-05]
[1646560878834,0.01476135,38637.0,38634.0,6.003e-05]
[1646560879035,0.02576,38638.0,38634.0,6.003e-05]
[1646560879238,0.07336,38636.0,38634.0,6.003e-05]
[1646560879435,0.0476,38635.0,38634.0,6.003e-05]
[1646560881035,0.0476,38635.0,38632.0,0.0008]
[1646560881437,0.0476,38635.0,38632.0,0.15872533]
[1646560881638,0.02576,38634.0,38632.0,0.0008]
[1646560881837,0.0476,38633.0,38632.0,0.0008]
[1646560882086,0.07336,38633.0,38632.0,0.0008]
[1646560882291,0.37941882,38633.0,38629.0,0.00927858]
[1646560882687,0.37941882,38633.0,38631.0,0.0001177]
[1646560882885,0.33181882,38632.0,38631.0,0.0001177]
[1646560883085,0.38181882,38632.0,38631.0,0.0001177]
[1646560883293,0.82642946,38630.0,38627.0,0.00033021]
[1646560883487,0.82642946,38630.0,38619.0,0.00281671]
[1646560883488,1.11601882,38629.0,38623.0,0.00232632]
[1646560883690,0.02576,38625.0,38623.0,0.00232632]
[1646560883888,0.02576,38625.0,38619.0,0.00281671]
[1646560883889,0.0476,38624.0,38619.0,0.00281671]
[1646560884199,0.0476,38624.0,38600.0,0.2722094]
[1646560884200,0.00159956,38617.0,38577.0,0.02441485]
[1646560884390,0.00159956,38617.0,38571.0,0.0491598]
[1646560884391,0.06951297,38595.0,38571.0,0.0491598]
[1646560884599,0.06951297,38595.0,38559.0,0.04892484]
[1646560884600,0.1845832,38594.0,38559.0,0.04892484]
[1646560884791,0.1845832,38594.0,38542.0,3.65642181]
[1646560884792,0.00503439,38571.0,38542.0,3.65642181]
[1646560884994,0.03098,38561.0,38535.0,0.07829]
[1646560885190,0.03098,38561.0,38527.0,0.04352273]
[1646560885191,0.0255,38540.0,38527.0,0.04352273]
[1646560885390,0.09886674,38536.0,38524.0,0.02692706]
[1646560885589,0.09886674,38536.0,38510.0,0.06489]
[1646560885590,0.09624499,38532.0,38505.0,0.12773839]
[1646560885852,0.09624499,38532.0,38500.0,2.67351002]
[1646560885853,2.042,38516.0,38500.0,2.67351002]
[1646560886057,2.042,38516.0,38496.0,0.00221302]
[1646560886058,0.00891509,38505.0,38496.0,0.00221302]
[1646560886257,0.13932703,38501.0,38496.0,0.00221302]
[1646560886451,0.13932703,38501.0,38430.0,0.1581362]
[1646560886452,0.68794976,38501.0,38430.0,0.1581362]
[1646560886651,1.16513093,38503.0,38461.0,0.7601]
[1646560886652,0.01576114,38499.0,38461.0,0.7601]
[1646560886859,0.07713,38505.0,38446.0,0.42222863]
[1646560886860,0.94718456,38515.0,38470.0,0.3]
[1646560887048,0.03000803,38515.0,38482.0,0.001]
[1646560887249,0.03000803,38515.0,38436.0,0.0139391]
[1646560887250,0.01443,38463.0,38436.0,0.0139391]
[1646560887449,0.25,38457.0,38429.0,0.388575]
[1646560887650,0.03681,38452.0,38429.0,0.0005]
[1646560887852,0.10645546,38452.0,38429.0,0.0005]
[1646560888053,0.01302161,38450.0,38429.0,0.388708]
[1646560888352,0.05792,38464.0,38429.0,0.388708]
[1646560888353,0.02477,38474.0,38448.0,0.2]
[1646560888554,0.0476,38477.0,38450.0,2.1741046]
[1646560888751,0.0021973,38460.0,38454.0,0.2]
[1646560888949,0.0021973,38460.0,38433.0,0.0852]
[1646560888950,0.3902763,38460.0,38433.0,0.0852]
[1646560889149,0.3902763,38460.0,38429.0,0.0005]
[1646560889150,0.00259145,38442.0,38429.0,0.0005]
[1646560889351,1.73e-05,38448.0,38429.0,0.0005]
[1646560889592,0.3855901,38460.0,38430.0,0.383079]
[1646560889593,0.0040901,38460.0,38430.0,0.383079]
[1646560889794,0.0040901,38460.0,38429.0,0.0005]
[1646560889795,0.39999999,38470.0,38431.0,0.0476]
[1646560889990,0.39999999,38470.0,38432.0,1.6499]
[1646560889991,0.39999999,38465.0,38432.0,1.6499]
[1646560890191,0.39999999,38465.0,38432.0,1.4947]
[1646560890192,0.4018307,38459.0,38432.0,1.4947]
[1646560890491,0.01377564,38451.0,38432.0,1.1655603]
[1646560890692,0.025,38459.0,38432.0,0.83792458]
[1646560890693,0.0476,38459.0,38432.0,0.83792458]
[1646560890894,0.21668823,38458.0,38430.0,0.1]
[1646560891192,0.09798933,38460.0,38430.0,0.1]
[1646560891193,0.01283764,38453.0,38450.0,0.19023258]
[1646560891391,0.09798933,38460.0,38441.0,1.15]
[1646560891392,0.01337568,38456.0,38441.0,1.15]
[1646560891593,0.53149999,38465.0,38433.0,0.47702431]
[1646560891594,0.39999999,38469.0,38442.0,1.15]
[1646560891793,0.5,38463.0,38442.0,1.15]
[1646560891991,0.14999999,38476.0,38443.0,1.33441349]
[1646560892190,0.33412704,38493.0,38443.0,1.33441349]
[1646560892391,0.35205502,38502.0,38443.0,1.33441349]
[1646560892392,0.15,38483.0,38451.0,0.00010672]
[1646560892592,0.15,38483.0,38449.0,0.00266817]
[1646560892593,0.18359951,38462.0,38449.0,0.00266817]
[1646560892891,0.18359951,38462.0,38445.0,0.00202801]
[1646560892892,0.1018659,38462.0,38444.0,1.14849154]
[1646560893091,0.1018659,38462.0,38444.0,0.6]
[1646560893365,0.007,38463.0,38448.0,0.15]
[1646560893567,0.007,38463.0,38442.0,0.001]
[1646560893568,0.0021973,38476.0,38470.0,0.06276649]
[1646560893764,0.0714,38449.0,38431.0,6.952e-05]
[1646560893963,0.0714,38449.0,38430.0,1.8626555]
[1646560893964,0.153707,38449.0,38430.0,1.84772502]
[1646560894165,0.09434,38449.0,38448.0,0.15]
[1646560894366,0.0476,38461.0,38448.0,0.15]
[1646560894565,0.0290901,38470.0,38459.0,0.15]
[1646560894566,0.01450256,38464.0,38459.0,0.15]
[1646560894766,0.0040901,38470.0,38430.0,1.84772502]
[1646560894767,0.01450256,38465.0,38463.0,0.15]
[1646560894963,0.0040901,38470.0,38460.0,0.07396399]
[1646560895165,0.01594836,38472.0,38460.0,0.07396399]
[1646560895166,0.01384446,38472.0,38460.0,0.07396399]
[1646560895363,0.0021973,38476.0,38460.0,0.07396399]
[1646560895364,0.004,38471.0,38460.0,0.07396399]
[1646560895563,0.004,38471.0,38465.0,0.15]
[1646560895765,0.004,38471.0,38460.0,0.07396399]
[1646560895766,0.004,38471.0,38470.0,0.26974846]
[1646560895965,0.0021973,38476.0,38470.0,0.26974846]
[1646560896368,0.0021973,38476.0,38475.0,0.15]
[1646560896567,0.09383467,38485.0,38484.0,0.19533478]
[1646560896767,0.01418377,38496.0,38484.0,0.15]
[1646560896968,0.15590275,38501.0,38477.0,1.3]
[1646560896969,6.494e-05,38501.0,38493.0,0.15]
[1646560897191,6.494e-05,38501.0,38486.0,0.05885904]
[1646560897391,6.494e-05,38501.0,38474.0,0.6775]
[1646560897392,0.00226224,38484.0,38478.0,0.15]
[1646560897593,0.00226224,38484.0,38475.0,0.0130011]
[1646560897892,0.00226224,38484.0,38465.0,0.01428041]
[1646560898094,0.00226224,38484.0,38479.0,0.15]
[1646560898293,0.00226224,38484.0,38479.0,0.2]
[1646560898493,0.00226224,38484.0,38483.0,0.15]
[1646560898700,0.015,38498.0,38483.0,0.15]
[1646560898701,0.015,38498.0,38484.0,0.19814657]
[1646560898895,0.015,38498.0,38497.0,0.20238383]
[1646560899094,6.494e-05,38501.0,38497.0,0.20238383]
[1646560899095,6.494e-05,38501.0,38498.0,1.15]
[1646560899295,0.0021973,38507.0,38500.0,0.14]
[1646560899495,0.0021973,38507.0,38506.0,0.14]
[1646560899693,0.28,38505.0,38499.0,0.85353243]
[1646560899896,0.28,38505.0,38500.0,0.84372944]
[1646560900094,0.00019824,38505.0,38501.0,1.15]
[1646560900292,8.24e-06,38505.0,38501.0,1.16671028]
[1646560900497,0.0037856,38515.0,38509.0,0.0526785]
[1646560900693,5.49e-06,38505.0,38503.0,1.16597394]
[1646560900953,0.00182786,38524.0,38517.0,0.20342319]
[1646560901149,0.00182786,38524.0,38507.0,0.01329327]
[1646560901359,0.17272166,38501.0,38492.0,0.35829965]
[1646560901550,2.166e-05,38501.0,38500.0,0.7122]
[1646560901751,2.166e-05,38501.0,38500.0,0.0437]
[1646560902149,2.166e-05,38501.0,38500.0,0.0432604]
[1646560902349,2.166e-05,38501.0,38496.0,0.0387]
[1646560902549,2.166e-05,38501.0,38488.0,0.21923511]
[1646560902550,2.166e-05,38501.0,38493.0,0.0437]
[1646560902752,0.00219731,38509.0,38494.0,1.12]
[1646560902952,0.00219731,38509.0,38495.0,1.30408394]
[1646560903154,0.00119731,38509.0,38503.0,0.00308554]
[1646560903354,0.00219731,38523.0,38494.0,1.12]
[1646560903355,0.00219731,38523.0,38508.0,0.08335924]
[1646560903552,9.731e-05,38523.0,38517.0,0.00308554]
[1646560903752,9.731e-05,38523.0,38518.0,0.19976061]
[1646560903960,9.731e-05,38523.0,38518.0,0.09976061]
[1646560904155,9.731e-05,38523.0,38510.0,0.00308554]
[1646560904351,9.731e-05,38523.0,38505.0,0.50218554]
[1646560904585,9.731e-05,38523.0,38505.0,0.4991]
[1646560904785,9.731e-05,38523.0,38506.0,0.0437]
[1646560904988,9.731e-05,38523.0,38519.0,0.00308554]
[1646560904989,7.31e-06,38523.0,38519.0,0.00308554]
[1646560905187,7.31e-06,38523.0,38520.0,0.0437]
[1646560905387,7.31e-06,38523.0,38508.0,0.00308554]
[1646560905586,7.31e-06,38523.0,38506.0,0.3302737]
[1646560905587,7.31e-06,38523.0,38516.0,0.0437]
[1646560905786,0.00220463,38523.0,38513.0,0.0437]
[1646560905985,0.00220463,38523.0,38507.0,0.91597394]
[1646560905986,0.00219732,38523.0,38511.0,0.00308554]
[1646560906185,0.1998,38539.0,38531.0,0.16300191]
[1646560906387,0.00019543,38521.0,38515.0,1.15]
[1646560906591,0.00019543,38521.0,38517.0,0.25406036]
[1646560906786,0.00019543,38521.0,38517.0,0.24993506]
[1646560906986,2.329e-05,38523.0,38518.0,1.15]
[1646560907189,2.329e-05,38523.0,38521.0,0.00406036]
[1646560907388,0.14593964,38536.0,38522.0,1.15]
[1646560907988,0.1197263,38554.0,38531.0,0.07226903]
[1646560908190,0.14593964,38549.0,38531.0,0.07226903]
[1646560908440,0.14593964,38552.0,38545.0,0.19916522]
[1646560908641,0.39833043,38543.0,38534.0,0.24993506]
[1646560908838,0.39833043,38543.0,38542.0,0.21932346]
[1646560909041,0.00017123,38544.0,38543.0,1.15]
[1646560909241,1.23e-06,38544.0,38543.0,1.16297]
[1646560909540,1.23e-06,38544.0,38543.0,0.01297]
[1646560909740,1.23e-06,38544.0,38533.0,0.0437]
[1646560909741,0.14593964,38544.0,38534.0,0.01297]
[1646560909942,0.14593964,38536.0,38523.0,0.01297]
[1646560910143,0.09185258,38561.0,38523.0,0.01297]
[1646560910144,0.15,38540.0,38525.0,0.0437]
[1646560910341,0.09268,38542.0,38518.0,0.01297]
[1646560910342,0.14593964,38526.0,38518.0,0.01297]
[1646560910542,0.14593964,38519.0,38517.0,0.6]
[1646560910740,0.14593964,38519.0,38505.0,0.4991]
[1646560910741,0.75,38518.0,38505.0,0.4991]
[1646560910941,0.01462154,38511.0,38505.0,0.4991]
[1646560911139,0.01462154,38511.0,38485.0,0.01298]
[1646560911140,0.14593964,38511.0,38485.0,0.01298]
[1646560911338,0.14593964,38507.0,38498.0,0.01298]
[1646560911540,0.05627935,38508.0,38482.0,0.34433496]
[1646560911739,0.05627935,38508.0,38477.0,0.001]
[1646560911740,0.14593964,38492.0,38481.0,0.001]
[1646560911948,0.14593964,38491.0,38481.0,0.001]
[1646560912391,0.14593964,38491.0,38481.0,0.91657394]
[1646560912589,0.14593964,38497.0,38481.0,0.0006]
[1646560912990,0.15,38506.0,38481.0,0.0006]
[1646560913193,0.14593964,38493.0,38481.0,0.0006]
[1646560913390,0.00876428,38500.0,38481.0,0.0006]
[1646560913591,0.0572718,38496.0,38481.0,0.0006]
[1646560913791,0.00876428,38496.0,38481.0,0.0006]
[1646560913991,0.1197263,38498.0,38481.0,0.0006]
[1646560913992,0.00876428,38498.0,38491.0,0.05]
[1646560914190,0.14493964,38493.0,38491.0,0.05]
[1646560914392,0.14,38492.0,38491.0,0.05]
[1646560914595,0.14,38492.0,38486.0,0.00036951]
[1646560914596,0.1,38490.0,38486.0,0.00036951]
[1646560914797,0.1,38490.0,38481.0,0.0006]
[1646560914798,0.27343022,38487.0,38481.0,0.0006]
[1646560914995,0.27343022,38487.0,38466.0,0.4852]
[1646560914996,0.00876428,38479.0,38466.0,0.4802]
[1646560915193,0.00876428,38479.0,38477.0,9.24e-05]
[1646560915394,0.00876428,38479.0,38456.0,0.00138673]
[1646560915395,0.5675332,38460.0,38456.0,0.00138673]
[1646560915596,0.14493964,38457.0,38456.0,0.00138673]
[1646560916055,0.00396,38459.0,38456.0,0.00138673]
[1646560916258,0.5675332,38460.0,38457.0,0.57024504]
[1646560916455,0.5675332,38460.0,38459.0,0.38811]
[1646560917055,0.5675332,38460.0,38458.0,0.30605882]
[1646560917263,0.5675332,38460.0,38459.0,0.38811]
[1646560917857,0.1,38507.0,38486.0,3.94698429]
[1646560918058,0.00026042,38487.0,38486.0,2.95198243]
[1646560918256,0.04396023,38487.0,38486.0,2.95198243]
[1646560918860,0.0437,38487.0,38486.0,2.95198243]
[1646560919059,0.125,38490.0,38486.0,3.16114637]
[1646560919060,0.1,38490.0,38486.0,3.16114637]
[1646560919262,0.1,38490.0,38487.0,0.30605882]
[1646560919460,0.1,38490.0,38486.0,3.16114637]
[1646560919891,0.1,38490.0,38486.0,2.95198243]
[1646560920089,0.00026034,38487.0,38486.0,2.95198243]
[1646560920793,0.00026034,38487.0,38479.0,8.754e-05]
[1646560920794,2.0,38486.0,38479.0,7.7e-06]
[1646560920991,2.0,38486.0,38460.0,0.01298]
[1646560920992,0.0026041,38482.0,38460.0,0.30605882]
[1646560921293,0.0026041,38482.0,38448.0,0.091]
[1646560921294,0.05385412,38456.0,38448.0,0.0885583]
[1646560921495,0.00026059,38452.0,38440.0,0.0002]
[1646560921693,0.31949158,38455.0,38440.0,0.0002]
[1646560921896,0.00260586,38451.0,38440.0,0.0002]
[1646560922090,0.00260586,38447.0,38440.0,0.0002]
[1646560922293,0.02687345,38433.0,38429.0,0.0005]
[1646560922497,0.30605882,38455.0,38430.0,0.01301]
[1646560922691,0.05385412,38456.0,38445.0,0.15]
[1646560922894,0.05385412,38456.0,38433.0,0.25436344]
[1646560923093,0.05385412,38456.0,38450.0,0.14620068]
[1646560923359,0.05385412,38456.0,38437.0,0.15]
[1646560923360,0.01738789,38453.0,38426.0,0.14620068]
[1646560923558,0.16043,38436.0,38426.0,0.14620068]
[1646560923757,0.01229681,38437.0,38424.0,0.0006]
[1646560924062,0.09628,38442.0,38424.0,0.0006]
[1646560924063,0.16043,38428.0,38424.0,0.0006]
[1646560924262,0.07386,38428.0,38424.0,0.0006]
[1646560924459,0.15964601,38425.0,38424.0,0.0006]
[1646560924659,0.08481,38426.0,38424.0,0.0006]
[1646560924866,0.15964601,38441.0,38424.0,0.0306]
[1646560925066,0.02720182,38442.0,38425.0,0.06437196]
[1646560925261,0.51325412,38456.0,38449.0,0.18011217]
[1646560925464,0.51325412,38456.0,38429.0,0.380226]
[1646560925465,0.5393365,38443.0,38429.0,0.380226]
[1646560925660,0.5393365,38443.0,38431.0,0.388126]
[1646560925860,0.5393365,38443.0,38432.0,0.01299]
[1646560926062,0.211689,38442.0,38431.0,0.17756003]
[1646560926460,0.211689,38442.0,38440.0,0.20349593]
[1646560926661,0.01345058,38467.0,38451.0,0.18743649]
[1646560926863,0.6482,38468.0,38432.0,0.09581073]
[1646560926864,0.30418927,38465.0,38452.0,0.30605882]
[1646560927090,0.30418927,38465.0,38433.0,0.02953]
[1646560927091,0.00026042,38454.0,38453.0,0.30605882]
[1646560927297,0.013,38469.0,38440.0,0.09581073]
[1646560927494,0.3498,38473.0,38444.0,0.388228]
[1646560927495,0.01299,38472.0,38444.0,0.388228]
[1646560927697,0.01299,38472.0,38449.0,0.09581073]
[1646560927898,0.015,38483.0,38460.0,0.02721]
[1646560927899,0.01299,38479.0,38460.0,0.02721]
[1646560928097,0.01298,38482.0,38461.0,1.30403194]
[1646560928294,0.015,38483.0,38463.0,0.388058]
[1646560928494,0.35418927,38465.0,38445.0,0.00640809]
[1646560928694,0.35418927,38465.0,38429.0,0.12793702]
[1646560928695,0.15418927,38459.0,38439.0,0.4998]
[1646560928899,0.73584009,38458.0,38439.0,0.4998]
[1646560929095,0.16611175,38443.0,38431.0,0.17785802]
[1646560929294,0.16611175,38443.0,38424.0,0.1237]
[1646560929295,0.73584009,38442.0,38424.0,0.1237]
[1646560929493,0.01392574,38441.0,38424.0,0.1237]
[1646560929692,0.35418927,38430.0,38424.0,0.1237]
[1646560929894,0.16723865,38426.0,38424.0,0.0006]
[1646560930094,0.275592,38425.0,38424.0,0.0006]
[1646560930493,0.425592,38425.0,38424.0,0.0006]
[1646560930694,0.00179999,38423.0,38402.0,0.00094166]
[1646560930944,0.15418927,38414.0,38402.0,0.30700048]
[1646560931148,0.19,38410.0,38408.0,0.0346]
[1646560931343,1.15,38408.0,38402.0,0.00094166]
[1646560931543,0.58165082,38407.0,38402.0,0.00094166]
[1646560931747,0.28919603,38405.0,38402.0,0.00094166]
[1646560931948,0.28919603,38405.0,38390.0,0.051]
[1646560931949,0.01517267,38402.0,38401.0,0.001]
[1646560932145,0.1525602,38387.0,38375.0,0.00142426]
[1646560932345,0.34174988,38380.0,38375.0,0.00142426]
[1646560932549,1.15,38374.0,38365.0,0.002]
[1646560932750,1.15,38374.0,38343.0,0.0006]
[1646560932751,0.14657681,38367.0,38343.0,0.0006]
[1646560932952,0.3025602,38368.0,38343.0,0.0006]
[1646560932953,0.14499382,38351.0,38343.0,0.0006]
[1646560933144,0.14499382,38351.0,38335.0,0.03457727]
[1646560933145,0.27273117,38350.0,38335.0,0.03457727]
[1646560933345,0.02835,38344.0,38335.0,0.03457727]
[1646560933548,0.02835,38344.0,38334.0,6e-05]
[1646560933549,0.1654035,38342.0,38334.0,6e-05]
[1646560933747,0.28165934,38334.0,38331.0,0.00098609]
[1646560933946,0.37666751,38334.0,38331.0,0.00098609]
[1646560934149,0.37501629,38334.0,38331.0,0.00098609]
[1646560934346,0.37340741,38334.0,38331.0,0.00098609]
[1646560934593,0.37340741,38334.0,38332.0,0.0009]
[1646560934594,0.37185113,38334.0,38332.0,0.0009]
[1646560934796,0.52024352,38334.0,38332.0,0.0009]
[1646560934999,0.51947219,38334.0,38332.0,0.0009]
[1646560935198,0.5366056,38334.0,38332.0,0.0009]
[1646560935398,1.70664338,38334.0,38332.0,0.0009]
[1646560935802,0.5366056,38334.0,38332.0,0.0009]
[1646560936006,0.6366056,38334.0,38332.0,0.0009]